fUSD/lending_fUSD_20260503
["ID","MTS","AMOUNT","RATE_DAILY","PERIOD"]
[421472687,1777739456000,-790.24,0.00032383,2]
[421472685,1777739456000,-500.0,0.00032383,2]
[421472691,1777739456000,-785.19,0.00032383,2]
[421472693,1777739456000,-500.0,0.00032383,2]
[421472694,1777739456000,-500.0,0.00032383,2]
[421472692,1777739456000,-260.02644205,0.00032383,2]
[421472696,1777739456000,-552.72,0.00032383,2]
[421472701,1777739456000,-500.0,0.00032383,2]
[421472700,1777739456000,-500.0,0.00032383,2]
[421472698,1777739456000,-500.0,0.00032383,2]
[421472695,1777739456000,-722.13,0.00032383,2]
[421472699,1777739456000,-500.0,0.00032383,2]
[421472734,1777739456000,-713.07,0.00032383,2]
[421472768,1777739456000,-500.0,0.00032383,2]
[421472728,1777739456000,-500.0,0.00032383,2]
[421472765,1777739456000,-500.0,0.00032383,2]
[421472767,1777739456000,-500.0,0.00032383,2]
[421472766,1777739456000,-630.93297269,0.00032383,2]
[421472772,1777739456000,-500.0,0.00032383,2]
[421472774,1777739456000,-500.0,0.00032383,2]
[421472771,1777739456000,-500.0,0.00032383,2]
[421472769,1777739456000,-513.31,0.00032383,2]
[421472770,1777739456000,-500.0,0.00032383,2]
[421472776,1777739456000,-500.0,0.00032383,2]
[421472775,1777739456000,-1818.64,0.00032383,2]
[421472773,1777739456000,-500.0,0.00032383,2]
[421472787,1777739456000,-543.72,0.00032383,2]
[421472786,1777739456000,-500.0,0.00032383,2]
[421472779,1777739456000,-612.37,0.00032383,2]
[421472777,1777739456000,-500.0,0.00032383,2]
[421472780,1777739456000,-609.73,0.00032383,2]
[421472781,1777739456000,-500.0,0.00032383,2]
[421472782,1777739456000,-500.0,0.00032383,2]
[421472783,1777739456000,-173.03764848,0.00032383,2]
[421472784,1777739456000,-604.63,0.00032383,2]
[421472785,1777739456000,-1066.55,0.00032383,2]
[421472792,1777739456000,-500.0,0.00032383,2]
[421472790,1777739456000,-500.0,0.00032383,2]
[421472791,1777739456000,-500.0,0.00032383,2]
[421472788,1777739456000,-500.0,0.00032383,2]
[421472729,1777739456000,-581.97,0.00032383,2]
[421472789,1777739456000,-728.39,0.00032383,2]
[421472760,1777739456000,-500.0,0.00032383,2]
[421472764,1777739456000,-500.0,0.00032383,2]
[421472778,1777739456000,-663.6,0.00032383,2]
[421472756,1777739456000,-500.0,0.00032383,2]
[421472738,1777739456000,-3415.88,0.00032383,2]
[421472739,1777739456000,-553.98,0.00032383,2]
[421472758,1777739456000,-500.0,0.00032383,2]
[421472736,1777739456000,-500.0,0.00032383,2]
[421472733,1777739456000,-1155.15,0.00032383,2]
[421472735,1777739456000,-550.05,0.00032383,2]
[421472737,1777739456000,-500.0,0.00032383,2]
[421472740,1777739456000,-500.0,0.00032383,2]
[421472742,1777739456000,-500.0,0.00032383,2]
[421472743,1777739456000,-500.0,0.00032383,2]
[421472741,1777739456000,-500.0,0.00032383,2]
[421472751,1777739456000,-834.78,0.00032383,2]
[421472752,1777739456000,-500.0,0.00032383,2]
[421472745,1777739456000,-500.0,0.00032383,2]
[421472744,1777739456000,-500.0,0.00032383,2]
[421472748,1777739456000,-500.0,0.00032383,2]
[421472761,1777739456000,-500.0,0.00032383,2]
[421472759,1777739456000,-500.0,0.00032383,2]
[421472750,1777739456000,-500.0,0.00032383,2]
[421472763,1777739456000,-500.0,0.00032383,2]
[421472762,1777739456000,-500.0,0.00032383,2]
[421472754,1777739456000,-500.0,0.00032383,2]
[421472757,1777739456000,-500.0,0.00032383,2]
[421472753,1777739456000,-500.0,0.00032383,2]
[421472749,1777739456000,-597.75,0.00032383,2]
[421472746,1777739456000,-500.0,0.00032383,2]
[421472747,1777739456000,-500.0,0.00032383,2]
[421472755,1777739456000,-500.0,0.00032383,2]
[421472825,1777739457000,-500.0,0.00032383,2]
[421472840,1777739457000,-500.0,0.00032383,2]
[421472836,1777739457000,-500.0,0.00032383,2]
[421472833,1777739457000,-500.0,0.00032383,2]
[421472831,1777739457000,-500.0,0.00032383,2]
[421472829,1777739457000,-500.0,0.00032383,2]
[421472837,1777739457000,-500.0,0.00032383,2]
[421472832,1777739457000,-360.262576,0.00032383,2]
[421472828,1777739457000,-635.75119174,0.00032383,2]
[421472824,1777739457000,-500.0,0.00032383,2]
[421472830,1777739457000,-1266.13,0.00032383,2]
[421472839,1777739457000,-500.0,0.00032383,2]
[421472841,1777739457000,-500.0,0.00032383,2]
[421472853,1777739457000,-554.6,0.00032383,2]
[421472838,1777739457000,-500.0,0.00032383,2]
[421472835,1777739457000,-500.0,0.00032383,2]
[421472842,1777739457000,-571.05,0.00032383,2]
[421472844,1777739457000,-228.2318061,0.00032383,2]
[421472843,1777739457000,-500.0,0.00032383,2]
[421472847,1777739457000,-580.28,0.00032383,2]
[421472846,1777739457000,-500.0,0.00032383,2]
[421472845,1777739457000,-500.0,0.00032383,2]
[421472848,1777739457000,-500.0,0.00032383,2]
[421472852,1777739457000,-500.0,0.00032383,2]
[421472849,1777739457000,-500.0,0.00032383,2]
[421472821,1777739457000,-2680.3,0.00032383,2]
[421472850,1777739457000,-500.0,0.00032383,2]
[421472834,1777739457000,-500.0,0.00032383,2]
[421472820,1777739457000,-500.0,0.00032383,2]
[421472794,1777739457000,-500.0,0.00032383,2]
[421472827,1777739457000,-500.0,0.00032383,2]
[421472851,1777739457000,-500.0,0.00032383,2]
[421472799,1777739457000,-500.0,0.00032383,2]
[421472793,1777739457000,-500.0,0.00032383,2]
[421472800,1777739457000,-500.0,0.00032383,2]
[421472796,1777739457000,-850.36,0.00032383,2]
[421472797,1777739457000,-500.0,0.00032383,2]
[421472801,1777739457000,-500.0,0.00032383,2]
[421472798,1777739457000,-500.0,0.00032383,2]
[421472795,1777739457000,-500.0,0.00032383,2]
[421472803,1777739457000,-577.55,0.00032383,2]
[421472814,1777739457000,-500.0,0.00032383,2]
[421472802,1777739457000,-938.43,0.00032383,2]
[421472813,1777739457000,-500.0,0.00032383,2]
[421472806,1777739457000,-500.0,0.00032383,2]
[421472808,1777739457000,-500.0,0.00032383,2]
[421472809,1777739457000,-500.0,0.00032383,2]
[421472804,1777739457000,-2122.15,0.00032383,2]
[421472805,1777739457000,-500.0,0.00032383,2]
[421472807,1777739457000,-500.0,0.00032383,2]
[421472810,1777739457000,-500.0,0.00032383,2]
[421472812,1777739457000,-500.0,0.00032383,2]
[421472811,1777739457000,-500.0,0.00032383,2]
[421472815,1777739457000,-697.01,0.00032383,2]
[421472816,1777739457000,-549.39,0.00032383,2]
[421472822,1777739457000,-500.0,0.00032383,2]
[421472818,1777739457000,-500.0,0.00032383,2]
[421472819,1777739457000,-500.0,0.00032383,2]
[421472817,1777739457000,-500.0,0.00032383,2]
[421472826,1777739457000,-500.0,0.00032383,2]
[421472823,1777739457000,-500.0,0.00032383,2]
[421472854,1777739457000,-500.0,0.00032383,2]
[421472874,1777739457000,-500.0,0.00032383,2]
[421472857,1777739457000,-500.0,0.00032383,2]
[421472891,1777739457000,-179.63687134,0.00032383,2]
[421472890,1777739457000,-509.3,0.00032383,2]
[421472903,1777739457000,-500.0,0.00032383,2]
[421472893,1777739457000,-500.0,0.00032383,2]
[421472892,1777739457000,-500.0,0.00032383,2]
[421472902,1777739457000,-514.85,0.00032383,2]
[421472899,1777739457000,-500.0,0.00032383,2]
[421472895,1777739457000,-599.91,0.00032383,2]
[421472897,1777739457000,-500.0,0.00032383,2]
[421472896,1777739457000,-500.0,0.00032383,2]
[421472898,1777739457000,-239.13655192,0.00032383,2]
[421472900,1777739457000,-500.0,0.00032383,2]
[421472894,1777739457000,-500.0,0.00032383,2]
[421472901,1777739457000,-500.0,0.00032383,2]
[421472905,1777739457000,-925.62,0.00032383,2]
[421472910,1777739457000,-597.18,0.00032383,2]
[421472914,1777739457000,-500.0,0.00032383,2]
[421472906,1777739457000,-500.0,0.00032383,2]
[421472904,1777739457000,-500.0,0.00032383,2]
[421472908,1777739457000,-515.41679436,0.00032383,2]
[421472909,1777739457000,-500.0,0.00032383,2]
[421472907,1777739457000,-500.0,0.00032383,2]
[421472912,1777739457000,-500.0,0.00032383,2]
[421472913,1777739457000,-940.68,0.00032383,2]
[421472911,1777739457000,-500.0,0.00032383,2]
[421472918,1777739457000,-919.27,0.00032383,2]
[421472917,1777739457000,-500.0,0.00032383,2]
[421472855,1777739457000,-546.55,0.00032383,2]
[421472915,1777739457000,-500.0,0.00032383,2]
[421472885,1777739457000,-500.0,0.00032383,2]
[421472916,1777739457000,-675.19,0.00032383,2]
[421472888,1777739457000,-5427.06,0.00032383,2]
[421472883,1777739457000,-221.76798,0.00032383,7]
[421472865,1777739457000,-500.0,0.00032383,2]
[421472856,1777739457000,-500.0,0.00032383,2]
[421472859,1777739457000,-500.0,0.00032383,2]
[421472858,1777739457000,-500.0,0.00032383,2]
[421472860,1777739457000,-587.14,0.00032383,2]
[421472862,1777739457000,-500.0,0.00032383,2]
[421472863,1777739457000,-500.0,0.00032383,2]
[421472861,1777739457000,-1144.75,0.00032383,2]
[421472867,1777739457000,-500.0,0.00032383,2]
[421472877,1777739457000,-500.0,0.00032383,2]
[421472868,1777739457000,-500.0,0.00032383,2]
[421472872,1777739457000,-500.0,0.00032383,2]
[421472866,1777739457000,-500.0,0.00032383,2]
[421472864,1777739457000,-1185.59,0.00032383,2]
[421472878,1777739457000,-151.0,0.00032383,7]
[421472882,1777739457000,-500.0,0.00032383,2]
[421472886,1777739457000,-500.0,0.00032383,2]
[421472881,1777739457000,-151.0,0.00032383,7]
[421472884,1777739457000,-500.0,0.00032383,2]
[421472880,1777739457000,-151.0,0.00032383,7]
[421472870,1777739457000,-500.0,0.00032383,2]
[421472889,1777739457000,-617.9,0.00032383,2]
[421472879,1777739457000,-151.0,0.00032383,7]
[421472875,1777739457000,-1946.38,0.00032383,2]
[421472873,1777739457000,-500.0,0.00032383,2]
[421472876,1777739457000,-614.66,0.00032383,2]
[421472871,1777739457000,-500.0,0.00032383,2]
[421472869,1777739457000,-500.0,0.00032383,2]
[421472887,1777739457000,-500.0,0.00032383,2]
[421472937,1777739458000,-500.0,0.00032383,2]
[421472940,1777739458000,-500.0,0.00032383,2]
[421472950,1777739458000,-156.531144,0.00032383,7]
[421472938,1777739458000,-500.0,0.00032383,2]
[421472933,1777739458000,-500.0,0.00032383,2]
[421472943,1777739458000,-156.531144,0.00032383,7]
[421472935,1777739458000,-564.64,0.00032383,2]
[421472955,1777739458000,-500.0,0.00032383,2]
[421472944,1777739458000,-500.0,0.00032383,2]
[421472956,1777739458000,-156.531144,0.00032383,7]
[421472953,1777739458000,-500.0,0.00032383,2]
[421472948,1777739458000,-500.0,0.00032383,2]
[421472949,1777739458000,-500.0,0.00032383,2]
[421472939,1777739458000,-500.0,0.00032383,2]
[421472945,1777739458000,-564.12,0.00032383,2]
[421472936,1777739458000,-500.0,0.00032383,2]
[421472928,1777739458000,-166.616429,0.00032383,7]
[421472934,1777739458000,-809.64,0.00032383,2]
[421472947,1777739458000,-156.531144,0.00032383,7]
[421472929,1777739458000,-166.616429,0.00032383,7]
[421472923,1777739458000,-166.616429,0.00032383,7]
[421472920,1777739458000,-500.0,0.00032383,2]
[421472922,1777739458000,-166.616429,0.00032383,7]
[421472924,1777739458000,-166.616429,0.00032383,7]
[421472919,1777739458000,-500.0,0.00032383,2]
[421472921,1777739458000,-166.616429,0.00032383,7]
[421472925,1777739458000,-500.0,0.00032383,2]
[421472926,1777739458000,-500.0,0.00032383,2]
[421472927,1777739458000,-361.87543686,0.00032383,2]
[421472930,1777739458000,-166.616429,0.00032383,7]
[421472942,1777739458000,-156.531144,0.00032383,7]
[421472931,1777739458000,-166.616425,0.00032383,7]
[421472941,1777739458000,-500.0,0.00032383,2]
[421472932,1777739458000,-857.05,0.00032383,2]
[421472946,1777739458000,-156.531144,0.00032383,7]
[421472979,1777739458000,-500.0,0.00032383,2]
[421472954,1777739458000,-500.0,0.00032383,2]
[421472971,1777739458000,-500.0,0.00032383,2]
[421472973,1777739458000,-880.71,0.00032383,2]
[421472982,1777739458000,-500.0,0.00032383,2]
[421472976,1777739458000,-500.0,0.00032383,2]
[421472974,1777739458000,-500.0,0.00032383,2]
[421472975,1777739458000,-555.46,0.00032383,2]
[421472978,1777739458000,-500.0,0.00032383,2]
[421472977,1777739458000,-361.55028138,0.00032383,2]
[421472984,1777739458000,-500.0,0.00032383,2]
[421472951,1777739458000,-156.531144,0.00032383,7]
[421472983,1777739458000,-833.99,0.00032383,2]
[421472989,1777739458000,-7805.91621196,0.00032383,2]
[421472987,1777739458000,-1156.62,0.00032383,2]
[421472988,1777739458000,-500.0,0.00032383,2]
[421472986,1777739458000,-500.0,0.00032383,2]
[421472970,1777739458000,-500.0,0.00032383,2]
[421472980,1777739458000,-500.0,0.00032383,2]
[421472985,1777739458000,-500.0,0.00032383,2]
[421472981,1777739458000,-500.0,0.00032383,2]
[421472968,1777739458000,-500.0,0.00032383,2]
[421472960,1777739458000,-508.52,0.00032383,2]
[421472969,1777739458000,-824.12,0.00032383,2]
[421472959,1777739458000,-500.0,0.00032383,2]
[421472957,1777739458000,-156.531152,0.00032383,7]
[421472961,1777739458000,-343.37387953,0.00032383,2]
[421472962,1777739458000,-500.0,0.00032383,2]
[421472964,1777739458000,-509.63,0.00032383,2]
[421472958,1777739458000,-500.0,0.00032383,2]
[421472972,1777739458000,-500.0,0.00032383,2]
[421472963,1777739458000,-1630.72,0.00032383,2]
[421472952,1777739458000,-500.0,0.00032383,2]
[421472966,1777739458000,-500.0,0.00032383,2]
[421472967,1777739458000,-500.0,0.00032383,2]
[421472965,1777739458000,-624.25,0.00032383,2]
[421473003,1777739459000,-659.96,0.00032383,2]
[421473011,1777739459000,-500.0,0.00032383,2]
[421473022,1777739459000,-500.0,0.00032383,2]
[421473001,1777739459000,-345.74709373,0.00032383,2]
[421473004,1777739459000,-500.0,0.00032383,2]
[421473005,1777739459000,-630.09,0.00032383,2]
[421473008,1777739459000,-500.0,0.00032383,2]
[421473002,1777739459000,-500.0,0.00032383,2]
[421473000,1777739459000,-154.25290627,0.00032383,2]
[421473007,1777739459000,-500.0,0.00032383,2]
[421473006,1777739459000,-500.0,0.00032383,2]
[421472992,1777739459000,-116.1264883,0.00032383,2]
[421473009,1777739459000,-500.0,0.00032383,2]
[421472998,1777739459000,-334.64429737,0.00032383,2]
[421472999,1777739459000,-500.0,0.00032383,2]
[421472996,1777739459000,-266.34023575,0.00032383,2]
[421472994,1777739459000,-500.0,0.00032383,2]
[421473013,1777739459000,-500.0,0.00032383,2]
[421472995,1777739459000,-594.98790714,0.00032383,2]
[421472997,1777739459000,-500.0,0.00032383,2]
[421472993,1777739459000,-500.0,0.00032383,2]
[421472991,1777739459000,-383.8735117,0.00032383,2]
[421472990,1777739459000,-2244.08378804,0.00032383,2]
[421473010,1777739459000,-564.96,0.00032383,2]
[421473015,1777739459000,-500.0,0.00032383,2]
[421473027,1777739459000,-500.0,0.00032383,2]
[421473014,1777739459000,-1819.54,0.00032383,2]
[421473012,1777739459000,-869.92,0.00032383,2]
[421473040,1777739459000,-500.0,0.00032383,2]
[421473039,1777739459000,-1280.4,0.00032383,2]
[421473038,1777739459000,-500.0,0.00032383,2]
[421473037,1777739459000,-500.0,0.00032383,2]
[421473031,1777739459000,-500.0,0.00032383,2]
[421473033,1777739459000,-500.0,0.00032383,2]
[421473032,1777739459000,-500.0,0.00032383,2]
[421473030,1777739459000,-500.0,0.00032383,2]
[421473029,1777739459000,-500.0,0.00032383,2]
[421473026,1777739459000,-681.47,0.00032383,2]
[421473028,1777739459000,-2682.08,0.00032383,2]
[421473041,1777739459000,-12564.00967853,0.00032383,2]
[421473036,1777739459000,-466.46787676,0.00032383,2]
[421473016,1777739459000,-500.0,0.00032383,2]
[421473017,1777739459000,-500.0,0.00032383,2]
[421473019,1777739459000,-500.0,0.00032383,2]
[421473020,1777739459000,-500.0,0.00032383,2]
[421473018,1777739459000,-500.0,0.00032383,2]
[421473025,1777739459000,-500.0,0.00032383,2]
[421473023,1777739459000,-500.0,0.00032383,2]
[421473035,1777739459000,-500.0,0.00032383,2]
[421473024,1777739459000,-500.0,0.00032383,2]
[421473021,1777739459000,-600.69,0.00032383,2]
[421473034,1777739459000,-546.63,0.00032383,2]
[421473043,1777739462000,50000.0,0.000107,2]
[421473044,1777739462000,223451.39708115,0.000107,2]
[421473042,1777739462000,2281.78512893,0.000107,2]
[421473049,1777740340000,250.0,0.00013,2]
[421473052,1777740401000,890.43763465,0.000107,2]
[421473051,1777740401000,210.60904153,0.000107,2]
[421473055,1777740547000,-369.33,0.00013046,2]
[421473058,1777740631000,-369.33,0.00013733,2]
[421473074,1777740631000,-369.33,0.00019913,2]
[421473072,1777740631000,-210.3800907,0.00019825,2]
[421473069,1777740631000,-369.33,0.00019226,2]
[421473066,1777740631000,-369.33,0.00017166,2]
[421473068,1777740631000,-369.33,0.00018539,2]
[421473067,1777740631000,-369.33,0.00017853,2]
[421473059,1777740631000,-36.00357739,0.00014419,2]
[421473071,1777740631000,-266.5992,0.000198,2]
[421473070,1777740631000,-331.0,0.000198,2]
[421473063,1777740631000,-117.98642261,0.00015793,2]
[421473064,1777740631000,-369.33,0.00016479,2]
[421473073,1777740631000,-224.52,0.000199,2]
[421473062,1777740631000,-251.34357739,0.00015793,2]
[421473060,1777740631000,-333.32642261,0.00014419,2]
[421473065,1777740631000,-250.0,0.00017126,2]
[421473076,1777740631000,-300.0,0.00019925,2]
[421473061,1777740631000,-369.33,0.00015106,2]
[421473077,1777740631000,-500.0,0.00019925,2]
[421473075,1777740631000,-1200.0,0.00019924,2]
[421473097,1777740631000,-410.0,0.0002,2]
[421473090,1777740631000,-705.0,0.00019999,2]
[421473091,1777740631000,-300.0,0.0002,2]
[421473095,1777740631000,-408.0,0.0002,2]
[421473089,1777740631000,-3091.68589504,0.0001998,2]
[421473088,1777740631000,-5000.0,0.0001998,2]
[421473087,1777740631000,-250.0,0.00019966,2]
[421473093,1777740631000,-544.0,0.0002,2]
[421473085,1777740631000,-500.0,0.00019966,2]
[421473084,1777740631000,-178.16362552,0.00019966,2]
[421473083,1777740631000,-300.0,0.00019966,2]
[421473078,1777740631000,-250.0,0.00019925,2]
[421473079,1777740631000,-201.0,0.00019949,2]
[421473081,1777740631000,-1173.18070642,0.0001995,2]
[421473082,1777740631000,-300.0,0.00019966,2]
[421473086,1777740631000,-472.51437042,0.00019966,2]
[421473080,1777740631000,-5000.0,0.0001995,2]
[421473144,1777740632000,-544.0,0.00022,2]
[421473151,1777740632000,-12919.0,0.000236,2]
[421473148,1777740632000,-500.0,0.00022876,2]
[421473147,1777740632000,-369.33,0.00022659,2]
[421473146,1777740632000,-951.71,0.00022562,2]
[421473149,1777740632000,-544.0,0.00023,2]
[421473143,1777740632000,-160.0,0.00022,2]
[421473142,1777740632000,-369.33,0.00021972,2]
[421473141,1777740632000,-300.0,0.0002189,2]
[421473145,1777740632000,-1083.0,0.00022562,2]
[421473150,1777740632000,-369.33,0.00023346,2]
[421473152,1777740632000,-2351.0,0.00023855,2]
[421473157,1777740632000,-1000.0,0.00024658,2]
[421473161,1777740632000,-1127.75,0.00024946,7]
[421473162,1777740632000,-561.51702337,0.00025,2]
[421473163,1777740632000,-5528.0,0.000251,5]
[421473164,1777740632000,-1127.75,0.00025234,30]
[421473154,1777740632000,-369.33,0.00024032,2]
[421473155,1777740632000,-1147.7330585,0.0002421,2]
[421473158,1777740632000,-151.5896622,0.00024658,2]
[421473137,1777740632000,-2500.0,0.0002189,2]
[421473156,1777740632000,-5528.0,0.000243,3]
[421473160,1777740632000,-369.33,0.00024719,2]
[421473159,1777740632000,-1127.75,0.00024658,2]
[421473165,1777740632000,-151.0,0.00025374,2]
[421473166,1777740632000,-174.61919141,0.00025374,2]
[421473153,1777740632000,-544.0,0.00024,2]
[421473140,1777740632000,-250.0,0.0002189,2]
[421473129,1777740632000,-1256.28,0.00020951,2]
[421473136,1777740632000,-5000.0,0.0002189,2]
[421473101,1777740632000,-401.0,0.0002,2]
[421473099,1777740632000,-409.0,0.0002,2]
[421473100,1777740632000,-397.0,0.0002,2]
[421473103,1777740632000,-405.0,0.0002,2]
[421473098,1777740632000,-410.0,0.0002,2]
[421473105,1777740632000,-397.0,0.0002,2]
[421473107,1777740632000,-412.0,0.0002,2]
[421473121,1777740632000,-407.0,0.00020192,2]
[421473116,1777740632000,-403.0,0.0002003,2]
[421473111,1777740632000,-400.0,0.0002,2]
[421473123,1777740632000,-401.0,0.00020492,2]
[421473109,1777740632000,-400.0,0.0002,2]
[421473112,1777740632000,-401.0,0.00020001,2]
[421473117,1777740632000,-500.0,0.00020074,2]
[421473119,1777740632000,-406.0,0.00020076,2]
[421473167,1777740632000,-369.33,0.00025406,2]
[421473114,1777740632000,-401.0,0.00020005,2]
[421473115,1777740632000,-402.0,0.00020012,2]
[421473113,1777740632000,-409.0,0.00020002,2]
[421473127,1777740632000,-1349.0,0.00020867,2]
[421473130,1777740632000,-1103.98,0.00020951,2]
[421473131,1777740632000,-544.0,0.00021,2]
[421473134,1777740632000,-1680.0,0.00021801,2]
[421473132,1777740632000,-369.33,0.00021286,2]
[421473135,1777740632000,-1000.0,0.00021889,2]
[421473133,1777740632000,-1345.0,0.00021374,2]
[421473138,1777740632000,-300.0,0.0002189,2]
[421473139,1777740632000,-500.0,0.0002189,2]
[421473170,1777740632000,-453.0,0.00025781,2]
[421473125,1777740632000,-369.33,0.00020599,2]
[421473169,1777740632000,-453.0,0.00025781,2]
[421473203,1777740632000,-453.0,0.00025781,2]
[421473204,1777740632000,-453.0,0.00025781,2]
[421473209,1777740632000,-453.0,0.00025781,2]
[421473205,1777740632000,-453.0,0.00025781,2]
[421473207,1777740632000,-453.0,0.00025781,2]
[421473202,1777740632000,-453.0,0.00025781,2]
[421473210,1777740632000,-453.0,0.00025781,2]
[421473206,1777740632000,-453.0,0.00025781,2]
[421473208,1777740632000,-453.0,0.00025781,2]
[421473211,1777740632000,-453.0,0.00025781,2]
[421473212,1777740632000,-453.0,0.00025781,2]
[421473215,1777740632000,-453.0,0.00025781,2]
[421473214,1777740632000,-453.0,0.00025781,2]
[421473213,1777740632000,-453.0,0.00025781,2]
[421473217,1777740632000,-453.0,0.00025781,2]
[421473220,1777740632000,-453.0,0.00025781,2]
[421473218,1777740632000,-453.0,0.00025781,2]
[421473219,1777740632000,-453.0,0.00025781,2]
[421473216,1777740632000,-453.0,0.00025781,2]
[421473222,1777740632000,-453.0,0.00025781,2]
[421473221,1777740632000,-453.0,0.00025781,2]
[421473225,1777740632000,-453.0,0.00025781,2]
[421473224,1777740632000,-453.0,0.00025781,2]
[421473227,1777740632000,-453.0,0.00025781,2]
[421473226,1777740632000,-453.0,0.00025781,2]
[421473228,1777740632000,-453.0,0.00025781,2]
[421473174,1777740632000,-453.0,0.00025781,2]
[421473197,1777740632000,-453.0,0.00025781,2]
[421473194,1777740632000,-453.0,0.00025781,2]
[421473223,1777740632000,-453.0,0.00025781,2]
[421473199,1777740632000,-453.0,0.00025781,2]
[421473172,1777740632000,-453.0,0.00025781,2]
[421473201,1777740632000,-453.0,0.00025781,2]
[421473173,1777740632000,-453.0,0.00025781,2]
[421473176,1777740632000,-453.0,0.00025781,2]
[421473171,1777740632000,-453.0,0.00025781,2]
[421473175,1777740632000,-453.0,0.00025781,2]
[421473177,1777740632000,-453.0,0.00025781,2]
[421473181,1777740632000,-453.0,0.00025781,2]
[421473179,1777740632000,-453.0,0.00025781,2]
[421473190,1777740632000,-453.0,0.00025781,2]
[421473189,1777740632000,-453.0,0.00025781,2]
[421473180,1777740632000,-453.0,0.00025781,2]
[421473178,1777740632000,-453.0,0.00025781,2]
[421473188,1777740632000,-453.0,0.00025781,2]
[421473168,1777740632000,-1127.75,0.00025523,2]
[421473184,1777740632000,-453.0,0.00025781,2]
[421473185,1777740632000,-453.0,0.00025781,2]
[421473192,1777740632000,-453.0,0.00025781,2]
[421473193,1777740632000,-453.0,0.00025781,2]
[421473196,1777740632000,-453.0,0.00025781,2]
[421473198,1777740632000,-453.0,0.00025781,2]
[421473200,1777740632000,-453.0,0.00025781,2]
[421473195,1777740632000,-453.0,0.00025781,2]
[421473186,1777740632000,-453.0,0.00025781,2]
[421473182,1777740632000,-453.0,0.00025781,2]
[421473183,1777740632000,-453.0,0.00025781,2]
[421473191,1777740632000,-453.0,0.00025781,2]
[421473187,1777740632000,-453.0,0.00025781,2]
[421473246,1777740633000,-453.0,0.00025781,2]
[421473244,1777740633000,-453.0,0.00025781,2]
[421473247,1777740633000,-453.0,0.00025781,2]
[421473245,1777740633000,-453.0,0.00025781,2]
[421473249,1777740633000,-453.0,0.00025781,2]
[421473252,1777740633000,-453.0,0.00025781,2]
[421473248,1777740633000,-453.0,0.00025781,2]
[421473258,1777740633000,-453.0,0.00025781,2]
[421473242,1777740633000,-453.0,0.00025781,2]
[421473251,1777740633000,-453.0,0.00025781,2]
[421473238,1777740633000,-453.0,0.00025781,2]
[421473241,1777740633000,-453.0,0.00025781,2]
[421473231,1777740633000,-453.0,0.00025781,2]